bitfinex/quotes_SOLUSD_20230101
["timestamp","ask_amount","ask_price","bid_price","bid_amount"]
[1672615734515,40.0,9.9951,9.9858,249.52864783]
[1672615734717,24.9103,9.9952,9.9859,40.0]
[1672615734935,24.9103,9.9952,9.986,249.52864783]
[1672615735260,24.9103,9.9951,9.9861,40.0]
[1672615735464,24.9103,9.9951,9.9863,40.0]
[1672615735786,24.9103,9.995,9.9865,40.0]
[1672615735997,24.9103,9.995,9.9866,249.52864783]
[1672615736185,24.9103,9.9949,9.9866,249.52864783]
[1672615737062,22.6106,9.9948,9.9866,249.52864783]
[1672615737658,22.6106,9.9947,9.9866,249.52864783]
[1672615738306,22.6106,9.9946,9.9866,249.52864783]
[1672615739651,22.6106,9.9946,9.98,5.75]
[1672615739652,75.16,9.9945,9.9867,249.45319635]
[1672615739881,40.0,9.9944,9.9867,249.45319635]
[1672615740083,40.0,9.9942,9.9867,249.45319635]
[1672615740416,40.0,9.994,9.9867,249.45319635]
[1672615740601,40.0,9.9938,9.9867,249.45319635]
[1672615740811,75.16,9.9937,9.9867,249.45319635]
[1672615741037,40.0,9.9936,9.9867,249.45319635]
[1672615741247,40.0,9.9934,9.9867,249.45319635]
[1672615745445,75.16,9.9939,9.9867,249.45319635]
[1672615745655,40.0,9.9953,9.9867,249.45319635]
[1672615745856,40.0,9.9951,9.9867,249.45319635]
[1672615746062,40.0,9.9949,9.9867,249.45319635]
[1672615746279,24.3477,9.9944,9.9867,249.45319635]
[1672615746492,24.3477,9.9944,9.9868,40.0]
[1672615746694,24.3477,9.9944,9.9869,249.45319635]
[1672615747030,24.3477,9.9944,9.987,40.0]
[1672615747354,24.3477,9.9944,9.9872,40.0]
[1672615747542,24.3477,9.9944,9.9873,249.45319635]
[1672615749422,40.0,9.9943,9.9873,249.45319635]
[1672615752369,24.3477,9.9944,9.9873,249.45319635]
[1672615752580,24.3477,9.9944,9.9874,57.26]
[1672615752803,24.3477,9.9944,9.9875,249.45319635]
[1672615752990,24.3477,9.9944,9.9876,57.26]
[1672615753206,24.3477,9.9944,9.9877,249.45319635]
[1672615753417,24.3477,9.9944,9.9878,57.26]
[1672615753647,24.3477,9.9944,9.9879,249.45319635]
[1672615754257,40.0,9.9943,9.9879,249.45319635]
[1672615755206,40.0,9.9943,9.988,57.18]
[1672615755419,40.0,9.9943,9.9881,249.45319635]
[1672615755959,40.0,9.9943,9.9882,57.18]
[1672615756170,40.0,9.9943,9.9883,249.45319635]
[1672615758379,40.0,9.9943,9.9884,57.16]
[1672615758593,40.0,9.9943,9.9885,249.45319635]
[1672615764478,40.0,9.9941,9.9886,171.49907249]
[1672615764888,40.0,9.9941,9.9841,190.7582]
[1672615765095,5.7,9.99,9.9842,24.9308]
[1672615765306,5.7,9.99,9.9843,57.18]
[1672615771756,40.0,9.9925,9.9843,57.18]
[1672615778147,5.7,9.99,9.9806,57.3]
[1672615778383,95.19,9.9899,9.9796,57.3]
[1672615778566,40.0,9.9898,9.9796,57.3]
[1672615778789,40.0,9.9896,9.9796,57.3]
[1672615778995,40.0,9.9894,9.9796,57.3]
[1672615779215,20.0,9.9893,9.9796,57.3]
[1672615779422,40.0,9.9892,9.9796,57.3]
[1672615779612,20.0,9.9891,9.9796,57.3]
[1672615779821,40.0,9.989,9.9796,57.3]
[1672615780038,20.0,9.9889,9.9796,57.3]
[1672615780580,64.5389,9.9888,9.9796,57.3]
[1672615780788,20.0,9.9887,9.9797,40.0]
[1672615781002,40.0,9.9886,9.9799,40.0]
[1672615781198,20.0,9.9885,9.9801,40.0]
[1672615781409,20.0,9.9885,9.9802,57.49]
[1672615781619,24.5389,9.9884,9.9803,40.0]
[1672615781836,40.0,9.9882,9.9804,57.49]
[1672615782227,5.65,10.0,9.9805,20.0]
[1672615782482,22.8617,9.9941,9.9806,307.82991887]
[1672615782801,23.1259,9.994,9.9808,40.0]
[1672615783031,23.1259,9.994,9.981,40.0]
[1672615783238,23.1259,9.9939,9.9812,40.0]
[1672615783410,23.1259,9.9939,9.9813,77.5]
[1672615783620,23.1259,9.9939,9.9814,40.0]
[1672615783837,22.8617,9.9941,9.9816,40.0]
[1672615783838,23.1259,9.9938,9.9816,40.0]
[1672615784075,23.1259,9.9938,9.9817,77.5]
[1672615784259,23.1259,9.9938,9.9818,40.0]
[1672615784483,23.1259,9.9937,9.982,40.0]
[1672615784797,23.1259,9.9937,9.9822,40.0]
[1672615785002,23.1259,9.9937,9.9824,40.0]
[1672615785209,23.1259,9.9937,9.9825,77.12]
[1672615785402,23.1259,9.9937,9.9826,40.0]
[1672615785611,23.1259,9.9937,9.9827,77.12]
[1672615785860,23.1259,9.9937,9.9828,40.0]
[1672615786039,23.1259,9.9937,9.983,40.0]
[1672615786252,24.3862,9.9936,9.9832,40.0]
[1672615786461,24.3862,9.9936,9.9833,57.12]
[1672615786784,40.0,9.9935,9.9832,57.12]
[1672615786984,40.0,9.9935,9.9832,132.9324]
[1672615787197,40.0,9.9933,9.9833,57.12]
[1672615787400,75.17,9.9932,9.9833,57.12]
[1672615787608,40.0,9.9931,9.9833,190.0524]
[1672615790364,40.0,9.9931,9.9834,23.867]
[1672615790548,40.0,9.9931,9.9835,57.31]
[1672615791511,5.69,9.99,9.9835,81.177]
[1672615791720,20.0,9.9899,9.9835,23.867]
[1672615791940,75.19,9.9898,9.9835,23.867]
[1672615792133,60.0,9.9897,9.9835,23.867]
[1672615792331,60.0,9.9897,9.9799,57.3]
[1672615792545,40.0,9.9895,9.9796,57.3]
[1672615792768,20.0,9.9894,9.9796,57.3]
[1672615792972,40.0,9.9893,9.9796,57.3]
[1672615793185,40.0,9.9891,9.9796,57.3]
[1672615793620,40.0,9.9889,9.9796,57.3]
[1672615794038,40.0,9.9887,9.9796,57.3]
[1672615794352,20.0,9.9886,9.98,5.7]
[1672615794570,44.0259,9.9886,9.9801,57.53]
[1672615794776,44.0259,9.9886,9.9802,40.0]
[1672615794986,44.0259,9.9886,9.9803,57.53]
[1672615795191,44.0259,9.9886,9.9804,40.0]
[1672615795410,44.0259,9.9886,9.9805,57.53]
[1672615796257,44.0259,9.9886,9.9803,57.53]
[1672615796468,44.0259,9.9886,9.9804,40.0]
[1672615796678,44.0259,9.9886,9.9805,57.53]
[1672615796890,40.0,9.9885,9.9805,57.53]
[1672615797100,40.0,9.9885,9.9803,57.48]
[1672615797316,20.0,9.9884,9.9803,57.48]
[1672615797627,20.0,9.9884,9.9804,40.0]
[1672615797834,20.0,9.9884,9.9805,57.48]
[1672615798151,20.0,9.9885,9.9805,57.48]
[1672615798356,20.0,9.9885,9.9803,57.48]
[1672615798882,20.0,9.9885,9.9801,57.49]
[1672615799595,20.0,9.9885,9.9802,40.0]
[1672615799798,20.0,9.9885,9.9804,40.0]
[1672615800006,20.0,9.9885,9.9805,57.51]
[1672615800231,20.0,9.9885,9.9806,40.0]
[1672615800441,20.0,9.9885,9.9807,57.51]
[1672615800841,20.0,9.9885,9.9803,57.52]
[1672615801057,20.0,9.9885,9.9804,40.0]
[1672615801290,20.0,9.9885,9.9805,57.51]
[1672615801683,20.0,9.9885,9.9806,40.0]
[1672615801896,20.0,9.9885,9.9807,57.51]
[1672615802332,20.0,9.9885,9.9803,57.52]
[1672615802962,20.0,9.9885,9.9804,40.0]
[1672615803169,20.0,9.9885,9.9805,57.48]
[1672615803385,20.0,9.9885,9.9806,40.0]
[1672615803603,20.0,9.9885,9.9807,57.48]
[1672615803829,20.0,9.9885,9.9808,40.0]
[1672615804003,20.0,9.9885,9.9809,57.47]
[1672615804443,20.0,9.9885,9.981,40.0]
[1672615804650,20.0,9.9885,9.9811,57.47]
[1672615804863,20.0,9.9885,9.9812,40.0]
[1672615805074,20.0,9.9885,9.9813,57.47]
[1672615805584,20.0,9.9885,9.9814,40.0]
[1672615805907,20.0,9.9885,9.9816,40.0]
[1672615806111,20.0,9.9885,9.9818,40.0]
[1672615806324,20.0,9.9885,9.9819,57.47]
[1672615806748,20.0,9.9885,9.9815,57.48]
[1672615806962,20.0,9.9885,9.9816,40.0]
[1672615807170,20.0,9.9885,9.9817,57.48]
[1672615807366,20.0,9.9885,9.9818,40.0]
[1672615807574,20.0,9.9885,9.9819,57.47]
[1672615808214,20.0,9.9885,9.982,40.0]
[1672615808532,20.0,9.9885,9.9821,57.47]
[1672615808724,20.0,9.9885,9.9814,40.0]
[1672615808939,20.0,9.9885,9.9816,40.0]
[1672615809164,20.0,9.9885,9.9817,57.5]
[1672615810834,20.0,9.9885,9.9812,40.0]
[1672615811044,20.0,9.9885,9.9814,40.0]
[1672615811250,20.0,9.9885,9.9815,57.5]
[1672615811455,20.0,9.9885,9.9816,40.0]
[1672615811676,20.0,9.9885,9.9817,57.5]
[1672615811876,40.0,9.9884,9.9817,57.5]
[1672615812087,20.0,9.9885,9.9808,40.0]
[1672615812296,40.0,9.9883,9.9809,57.53]
[1672615812526,40.0,9.9883,9.9767,40.0]
[1672615812527,20.0,9.9882,9.9796,57.53]
[1672615812715,182.6586,9.9882,9.9796,57.53]
[1672615812924,40.0,9.9881,9.9796,57.53]
[1672615813151,40.0,9.9879,9.9796,57.53]
[1672615814195,24.6132,9.9878,9.9796,57.53]
[1672615814834,40.0,9.9876,9.9796,57.53]
[1672615815353,64.6483,9.9876,9.9796,57.53]
[1672615818943,24.6483,9.9876,9.9796,57.53]
[1672615821546,40.0,9.9875,9.9796,57.53]
[1672615822293,63.8619,9.9875,9.9796,57.53]
[1672615823225,63.8619,9.9875,9.977,57.58]
[1672615823432,48.4459,9.9874,9.977,40.0]
[1672615823643,40.0,9.9873,9.9771,57.58]
[1672615823866,115.21,9.9873,9.9772,40.0]
[1672615824068,40.0,9.9871,9.9774,40.0]
[1672615824276,40.0,9.9871,9.9776,40.0]
[1672615824486,40.0,9.9871,9.9777,58.91]
[1672615824699,40.0,9.9869,9.9777,58.91]
[1672615825132,40.0,9.9869,9.9778,40.0]
[1672615825342,40.0,9.9867,9.9778,40.0]
[1672615825554,40.0,9.9867,9.9777,58.91]
[1672615826062,40.0,9.9865,9.9778,40.0]
[1672615826587,40.0,9.9863,9.9778,40.0]
[1672615826798,40.0,9.9863,9.9777,58.91]
[1672615827443,40.0,9.9861,9.9777,58.91]
[1672615828172,22.5424,9.986,9.9777,58.91]
[1672615828390,40.0,9.9859,9.9777,58.91]
[1672615828806,62.5424,9.9859,9.9777,58.91]
[1672615830688,22.5424,9.9859,9.9777,58.91]
[1672615831014,22.5424,9.9859,9.9778,40.0]
[1672615831438,40.0,9.9858,9.9778,40.0]
[1672615832055,40.0,9.9858,9.9779,65.42]
[1672615832260,22.5424,9.9859,9.978,30.0]
[1672615832474,22.5424,9.9859,9.9781,65.42]
[1672615832689,22.5424,9.9859,9.9796,65.41]
[1672615835754,22.5424,9.9859,9.9797,30.0]
[1672615838167,22.5424,9.9859,9.98,5.71]
[1672615851425,75.18,9.991,9.9802,329.6]
[1672615851634,24.0609,9.9945,9.9803,20.0]
[1672615851951,99.2209,9.9944,9.9805,30.0]
[1672615852163,24.0609,9.9944,9.9806,20.0]
[1672615852378,24.0609,9.9943,9.9807,30.0]
[1672615852691,24.0609,9.9943,9.9809,30.0]
[1672615852884,22.946,9.9942,9.9811,30.0]
[1672615853095,22.946,9.9942,9.9812,184.9167]
[1672615853295,22.946,9.9942,9.9813,30.0]
[1672615853631,22.946,9.9942,9.9814,20.0]
[1672615853842,22.946,9.9941,9.9815,30.0]
[1672615854050,22.946,9.994,9.9817,30.0]
[1672615854270,22.946,9.994,9.9818,20.0]
[1672615854573,22.946,9.994,9.9819,30.0]
[1672615854778,22.946,9.9939,9.9821,30.0]
[1672615854988,22.946,9.9938,9.9821,30.0]
[1672615855197,22.946,9.9938,9.9823,30.0]
[1672615855410,22.946,9.9938,9.9825,30.0]
[1672615855615,22.946,9.9937,9.9825,30.0]
[1672615855830,22.946,9.9936,9.9827,30.0]
[1672615856041,23.5022,9.9935,9.9829,30.0]
[1672615856251,23.5022,9.9935,9.983,114.7267]
[1672615856461,23.5022,9.9935,9.9831,30.0]
[1672615856670,23.5022,9.9935,9.9831,84.66398789]
[1672615856884,23.5022,9.9935,9.9832,95.55364525]
[1672615857087,23.5022,9.9935,9.9833,30.0]
[1672615857318,23.5022,9.9935,9.9833,84.66398789]
[1672615857535,23.5022,9.9934,9.9835,30.0]
[1672615858064,23.5022,9.9934,9.9837,30.0]
[1672615858273,23.5022,9.9933,9.9837,30.0]
[1672615858601,23.5022,9.9933,9.9839,30.0]
[1672615858998,23.5022,9.9933,9.984,54.66398789]
[1672615859333,23.5022,9.9933,9.9841,30.0]
[1672615859546,24.4738,9.9932,9.9841,30.0]
[1672615859741,24.4738,9.9931,9.9843,30.0]
[1672615860278,24.4738,9.9931,9.9845,30.0]
[1672615860688,24.4738,9.9931,9.9847,30.0]
[1672615861095,24.4738,9.993,9.9847,30.0]
[1672615861306,24.4738,9.993,9.9847,84.66398789]
[1672615861834,24.4738,9.993,9.9849,30.0]
[1672615862161,24.4738,9.993,9.985,54.66398789]
[1672615862480,24.4738,9.993,9.9851,30.0]
[1672615862881,24.4738,9.993,9.9852,54.66398789]
[1672615863088,24.4738,9.993,9.9853,30.0]
[1672615863426,24.4738,9.993,9.9855,30.0]
[1672615863822,24.4738,9.993,9.9855,84.66398789]
[1672615871619,24.4738,9.993,9.9856,65.81426009]
[1672615871833,24.4738,9.993,9.9857,30.0]
[1672615872057,24.4738,9.993,9.9857,84.66398789]
[1672615872238,24.4738,9.993,9.9859,30.0]
[1672615873721,24.4738,9.993,9.9861,30.0]
[1672615874151,24.4738,9.993,9.9861,84.66398789]
[1672615874553,24.4738,9.993,9.9861,150.47824798]
[1672615877720,24.4738,9.993,9.9861,220.05983216]
[1672615878333,75.14,9.9972,9.9863,30.0]
[1672615878543,75.12,9.9999,9.99,5.67]
[1672615878771,30.0,9.9998,9.9901,20.0]
[1672615878962,30.0,9.9998,9.9901,231.67998789]
[1672615879172,30.0,9.9998,9.9902,84.66398789]
[1672615879400,30.0,9.9998,9.9903,20.0]
[1672615879603,30.0,9.9998,9.9903,42.5359]
[1672615879815,30.0,9.9998,9.9904,30.0]
[1672615880345,30.0,9.9998,9.9906,30.0]
[1672615880764,30.0,9.9998,9.9907,42.5359]
[1672615881394,30.0,9.9998,9.9908,22.5359]
[1672615881589,30.0,9.9998,9.9909,20.0]
[1672615881800,30.0,9.9998,9.9909,42.8312]
[1672615882543,30.0,9.9998,9.991,22.8312]
[1672615882739,30.0,9.9998,9.9911,20.0]
[1672615883167,30.0,9.9998,9.9912,22.8312]
[1672615883370,30.0,9.9998,9.9913,20.0]
[1672615883806,30.0,9.9998,9.9913,42.8312]
[1672615887703,30.0,9.9999,9.9913,42.8312]
[1672615892748,30.0,9.9998,9.9913,42.8312]
[1672615898646,105.11,10.001,9.9913,42.8312]
[1672615898976,75.09,10.003,9.9915,30.0]
[1672615899174,30.0,10.005,9.9915,30.0]
[1672615899175,105.08,10.005,9.9915,30.0]
[1672615899385,105.08,10.005,9.9916,121.21258789]
[1672615899590,75.08,10.005,9.9916,256.60843216]
[1672615899805,75.08,10.005,9.9917,124.24557207]
[1672615900007,75.05,10.008,9.9918,30.0]
[1672615900332,30.0,10.007,9.992,30.0]
[1672615900540,333.35324482,10.006,9.9921,20.0]
[1672615900868,333.35324482,10.006,9.9922,30.0]
[1672615901069,333.35324482,10.006,9.9922,170.05287993]
[1672615901388,30.0,10.005,9.9924,30.0]
[1672615901603,30.0,10.005,9.9925,20.0]
[1672615901801,30.0,10.005,9.9926,30.0]
[1672615902014,30.0,10.005,9.9927,20.0]
[1672615902433,30.0,10.005,9.9928,23.2058]
[1672615903053,30.0,10.005,9.9929,23.2058]
[1672615906437,30.0,10.005,9.993,30.0]
[1672615909679,75.8167,10.005,9.993,30.0]
[1672615911469,75.8167,10.005,9.9932,30.0]
[1672615913905,45.8167,10.005,9.9932,220.05983216]
[1672615915780,75.8167,10.005,9.9932,220.05983216]
[1672615916954,45.8167,10.005,9.9932,220.05983216]
[1672615917277,75.8167,10.005,9.9932,220.05983216]
[1672615917669,45.8167,10.005,9.9932,220.05983216]
[1672615918420,333.35324482,10.006,9.9932,220.05983216]
[1672615919348,40.0,10.005,9.9932,220.05983216]
[1672615919988,333.35324482,10.006,9.9932,220.05983216]
[1672615920203,40.0,10.005,9.9932,220.05983216]
[1672615920421,333.35324482,10.006,9.9932,220.05983216]
[1672615924506,333.35324482,10.006,9.9932,190.05983216]
[1672615924746,40.0,10.005,9.9933,40.0]
[1672615925147,40.0,10.005,9.9935,40.0]
[1672615925696,40.0,10.005,9.9937,40.0]
[1672615925998,40.0,10.005,9.9938,190.05983216]
[1672615926210,40.0,10.005,9.9939,40.0]
[1672615926419,40.0,10.005,9.9939,230.05983216]
[1672615926735,40.0,10.005,9.9941,40.0]
[1672615927371,40.0,10.005,9.9941,105.81426009]
[1672615927891,40.0,10.005,9.9941,65.81426009]
[1672615928927,40.0,10.005,9.9942,40.0]
[1672615929139,40.0,10.005,9.9941,65.81426009]
[1672615930510,40.0,10.005,9.9942,40.0]
[1672615934197,40.0,10.005,9.9941,65.81426009]
[1672615939049,115.08,10.005,9.9939,54.66398789]
[1672615939453,115.08,10.005,9.9913,69.58158418]
[1672615939660,5.71,10.0,9.9916,116.56]
[1672615940302,75.12,9.9999,9.9916,116.56]
[1672615940569,40.0,9.9998,9.9916,116.56]
[1672615941778,40.0,9.9996,9.9916,116.56]
[1672615951323,40.0,9.9994,9.9916,116.56]
[1672615951531,40.0,9.9992,9.9916,116.56]
[1672615951739,40.0,9.999,9.9916,116.56]
[1672615974444,40.0,9.999,9.9917,75.18]
[1672615974657,40.0,9.999,9.9916,116.56]
[1672615983063,40.0,9.9996,9.9916,116.56]
[1672615983272,40.0,9.9996,9.9922,75.17]
[1672615983709,40.0,9.9996,9.9917,75.18]
[1672615987688,40.0,9.9996,9.9916,116.56]
[1672615998443,40.0,9.9996,9.9917,75.18]
[1672616003369,40.0,9.9996,9.9922,75.17]
[1672616003593,40.0,9.9996,9.9917,75.18]
[1672616003807,186.94142722,10.001,9.9917,75.18]
[1672616004214,186.94142722,10.001,9.9918,40.0]
[1672616004423,186.94142722,10.001,9.9917,75.18]
[1672616005271,186.94142722,10.001,9.9918,40.0]
[1672616005483,186.94142722,10.001,9.9917,75.18]
[1672616007586,186.94142722,10.001,9.9916,116.56]
[1672616007802,186.94142722,10.001,9.9917,111.583]
[1672616011694,186.94142722,10.001,9.9918,40.0]
[1672616012105,115.11,10.001,9.9918,40.0]
[1672616012313,75.11,10.001,9.9918,40.0]
[1672616012520,71.83142722,10.002,9.993,40.0]
[1672616012732,71.83142722,10.002,9.993,62.9579]
[1672616013367,71.83142722,10.002,9.9932,40.0]
[1672616013784,111.83142722,10.002,9.9932,40.0]
[1672616013994,111.83142722,10.002,9.9933,24.2851]
[1672616014620,111.83142722,10.002,9.9934,24.2851]
[1672616015165,71.83142722,10.002,9.9934,24.2851]
[1672616015377,111.83142722,10.002,9.9934,24.2851]
[1672616016003,71.83142722,10.002,9.9934,24.2851]
[1672616016629,111.83142722,10.002,9.9934,24.2851]
[1672616018211,71.83142722,10.002,9.9934,24.2851]
[1672616019788,111.83142722,10.002,9.9934,24.2851]
[1672616020710,71.83142722,10.002,9.9934,24.2851]
[1672616022512,111.83142722,10.002,9.9934,24.2851]
[1672616022841,71.83142722,10.002,9.9934,24.2851]
[1672616023039,115.09,10.003,9.9934,24.2851]
[1672616023241,75.09,10.003,9.9936,40.0]
[1672616023579,75.09,10.003,9.9936,39.89425343]
[1672616023890,75.09,10.003,9.9938,40.0]
[1672616024409,75.09,10.003,9.9939,23.3823]
[1672616024617,75.09,10.003,9.994,40.0]
[1672616024831,75.09,10.003,9.994,63.3823]
[1672616026192,75.09,10.003,9.9941,22.8643]
[1672616026821,75.09,10.003,9.9942,22.8643]
[1672616027656,75.09,10.003,9.9943,22.8643]
[1672616028175,75.09,10.003,9.9944,22.8643]
[1672616030402,40.0,10.002,9.9944,22.8643]
[1672616043219,75.11,10.001,9.9944,22.8643]
[1672616043533,40.0,10.0,9.9944,22.8643]
[1672616058872,115.1,10.002,9.9944,22.8643]
[1672616059105,40.0,10.002,9.9944,22.8643]
[1672616061494,39.91405281,10.002,9.9944,22.8643]
[1672616062551,115.09,10.003,9.9944,22.8643]
[1672616075308,40.0,10.001,9.9944,22.8643]
[1672616078861,71.83142722,10.002,9.9944,22.8643]
[1672616081609,71.83142722,10.002,9.9945,30.0]
[1672616083084,71.83142722,10.002,9.9944,22.8643]
[1672616085275,75.11,10.001,9.9944,22.8643]
[1672616085482,75.1,10.002,9.9944,22.8643]
[1672616093899,30.0,10.001,9.9944,22.8643]
[1672616094535,75.1,10.002,9.9944,22.8643]
[1672616095041,30.0,10.001,9.9944,22.8643]
[1672616100310,75.1,10.002,9.9944,22.8643]
[1672616102633,30.0,10.001,9.9944,22.8643]
[1672616102843,75.1,10.002,9.9944,22.8643]
[1672616103471,146.93142722,10.002,9.9944,22.8643]
[1672616103668,75.1,10.002,9.9944,22.8643]
[1672616104855,30.0,10.001,9.9944,22.8643]
[1672616107268,75.1,10.002,9.9944,22.8643]
[1672616108406,146.93142722,10.002,9.9944,22.8643]
[1672616108625,30.0,10.001,9.9944,22.8643]
[1672616110404,30.0,9.9999,9.9944,22.8643]
[1672616110614,30.0,9.9997,9.9944,22.8643]
[1672616110827,30.0,9.9995,9.9944,22.8643]
[1672616111052,75.12,9.9994,9.9944,22.8643]
[1672616111247,30.0,9.9995,9.9944,22.8643]
[1672616116504,30.0,9.9999,9.9944,22.8643]
[1672616116724,80.76,10.0,9.9944,22.8643]
[1672616116942,5.65,10.0,9.9944,22.8643]
[1672616120111,105.11,10.001,9.9944,22.8643]
[1672616120326,30.0,10.001,9.9944,22.8643]
[1672616134396,146.93142722,10.002,9.9944,22.8643]
[1672616135240,30.0,10.001,9.9944,22.8643]
[1672616135883,30.0,10.001,9.9944,20.3643]
[1672616137768,30.0,10.001,9.9944,17.8643]
[1672616183196,146.93142722,10.002,9.9944,17.8643]
[1672616183603,30.0,10.001,9.9944,17.8643]
[1672616204231,30.0,10.001,9.9945,164.1670609]
[1672616205286,25.65,10.0,9.9945,164.1670609]
[1672616205504,173.09214749,9.9925,9.9843,221.3464]
[1672616206328,173.09214749,9.9925,9.9843,160.1764]
[1672616206539,30.0,9.9924,9.9843,160.1764]
[1672616206744,173.09214749,9.9925,9.9843,160.1764]
[1672616206976,173.09214749,9.9925,9.9845,30.0]
[1672616207175,173.09214749,9.9925,9.9846,56.94]
[1672616207391,173.09214749,9.9925,9.9847,30.0]
[1672616207591,173.09214749,9.9925,9.9848,59.74]
[1672616207915,173.09214749,9.9925,9.9849,30.0]
[1672616208536,173.09214749,9.9925,9.9848,59.74]
[1672616209179,173.09214749,9.9925,9.9849,30.0]
[1672616224537,105.17,9.9924,9.9844,23.6856]
[1672616224749,30.0,9.9923,9.9844,23.6856]
[1672616225058,30.0,9.9921,9.9844,23.6856]
[1672616225272,30.0,9.9919,9.9844,23.6856]
[1672616225474,30.0,9.9917,9.9844,23.6856]
[1672616225679,75.18,9.9916,9.9844,23.6856]
[1672616225880,30.0,9.9915,9.9844,23.6856]
[1672616226094,30.0,9.9913,9.9844,23.6856]
[1672616226309,30.0,9.9911,9.9844,23.6856]
[1672616226526,75.18,9.991,9.9844,23.6856]
[1672616226725,30.0,9.9909,9.9844,23.6856]
[1672616226946,75.18,9.9908,9.9844,23.6856]
[1672616227256,30.0,9.9907,9.9844,23.6856]
[1672616227579,75.19,9.9906,9.9844,23.6856]
[1672616227795,30.0,9.9905,9.9844,23.6856]
[1672616227986,30.0,9.9903,9.9844,23.6856]
[1672616228195,30.0,9.9901,9.9844,23.6856]
[1672616228407,30.0,9.9899,9.9844,23.6856]
[1672616228618,75.19,9.9898,9.9844,23.6856]
[1672616229065,30.0,9.9897,9.9844,23.6856]
[1672616229272,30.0,9.9895,9.9844,23.6856]
[1672616229484,30.0,9.9893,9.9844,23.6856]
[1672616229695,75.2,9.9892,9.9844,23.6856]
[1672616229910,30.0,9.9891,9.9844,23.6856]
[1672616230119,75.2,9.989,9.9844,23.6856]
[1672616230321,30.0,9.9889,9.9844,23.6856]
[1672616230969,30.0,9.9889,9.9843,24.6331]
[1672616239583,30.0,9.9889,9.9801,70.29]
[1672616239788,95.2,9.9888,9.9762,98.0405]
[1672616239994,30.0,9.9887,9.9762,215.356]
[1672616240227,95.2,9.9886,9.9762,215.356]
[1672616240632,165.0827,9.9885,9.9762,215.356]
[1672616240842,125.2,9.9884,9.9762,215.356]
[1672616241375,165.0827,9.9883,9.9762,215.356]
[1672616241687,30.0,9.9881,9.9763,30.0]
[1672616241897,95.21,9.988,9.9764,75.29]
[1672616242103,30.0,9.9879,9.9765,30.0]
[1672616242314,30.0,9.9877,9.9767,30.0]
[1672616242533,75.21,9.9876,9.9768,75.29]
[1672616242856,30.0,9.9874,9.9769,30.0]
[1672616243047,95.21,9.9873,9.977,75.29]
[1672616243259,30.0,9.9872,9.9771,30.0]
[1672616243464,95.21,9.9871,9.9772,75.29]
[1672616243785,30.0,9.987,9.9773,30.0]
[1672616244005,30.0,9.9868,9.9773,30.0]
[1672616244205,75.21,9.9867,9.9773,30.0]
[1672616244416,75.21,9.9868,9.9773,30.0]
[1672616244954,22.8093,9.9867,9.9801,30.0]
[1672616245268,22.8093,9.9867,9.9802,75.26]
[1672616245481,22.8093,9.9867,9.9801,105.26]
[1672616246327,22.8093,9.9867,9.9801,30.0]
[1672616248100,22.8093,9.9867,9.98,5.7]
[1672616249557,22.8093,9.9867,9.9802,30.0]
[1672616249764,22.8093,9.9867,9.98,5.7]
[1672616250606,22.8093,9.9867,9.9795,0.5]
[1672616250823,30.0,9.9866,9.9795,0.5]
[1672616251471,30.0,9.9864,9.9795,0.5]
[1672616251683,30.0,9.9862,9.9795,0.5]
[1672616251876,30.0,9.986,9.977,75.29]
[1672616252727,30.0,9.9858,9.9771,30.0]
[1672616253263,30.0,9.9858,9.977,75.29]
[1672616253466,30.0,9.9856,9.977,75.29]
[1672616253671,30.0,9.9856,9.9768,75.29]
[1672616253886,30.0,9.9856,9.9766,75.29]
[1672616254205,30.0,9.9854,9.9766,75.29]
[1672616254619,23.5962,9.9853,9.9766,75.29]
[1672616254824,23.5962,9.9853,9.9764,75.29]
[1672616255257,23.5962,9.9852,9.9764,30.0]
[1672616255478,23.5962,9.9852,9.9765,75.29]